fUSD/lending_fUSD_20260329
["ID","MTS","AMOUNT","RATE_DAILY","PERIOD"]
[419040770,1774801841099,-232.93493726,0.00014091,2]
[419040771,1774801841108,-217.15233878,0.00014091,2]
[419040772,1774801841118,-181.08010149,0.00014091,2]
[419040773,1774801841127,-771.30773928,0.00014091,2]
[419040774,1774801841137,-200.0,0.00014091,2]
[419040775,1774801841147,-290.26104003,0.00014091,2]
[419040776,1774801841156,-827.05491841,0.00014091,2]
[419040777,1774801841166,-500.0,0.00014093,2]
[419040778,1774801841176,-151.0,0.00014093,2]
[419040779,1774801841186,-209.21,0.00014113,2]
[419040780,1774801841196,-500.0,0.00014115,2]
[419040781,1774801841205,-500.0,0.00014115,2]
[419040782,1774801841215,-500.0,0.00014115,2]
[419040783,1774801841225,-500.0,0.00014146,2]
[419040784,1774801841235,-500.0,0.00014146,2]
[419040785,1774801841244,-2351.0,0.00014156,2]
[419040786,1774801841254,-500.0,0.00014192,2]
[419040787,1774801841264,-41184.81579609,0.00014202,2]
[419040788,1774801841273,-500.0,0.00014209,2]
[419040789,1774801841282,-500.0,0.00014209,2]
[419040790,1774801841292,-583.31180057,0.00014209,2]
[419040791,1774801841301,-500.0,0.00014209,2]
[419040792,1774801841311,-500.0,0.00014209,2]
[419040793,1774801841321,-500.0,0.00014209,2]
[419040794,1774801841330,-500.0,0.00014209,2]
[419040795,1774801841339,-500.0,0.00014209,2]
[419040796,1774801841349,-500.0,0.00014209,2]
[419040797,1774801841359,-500.0,0.00014209,2]
[419040798,1774801841368,-500.0,0.00014209,2]
[419040799,1774801841380,-279.07,0.00014209,2]
[419040800,1774801841391,-500.0,0.00014209,2]
[419040801,1774801841403,-600.87743374,0.00014209,2]
[419040802,1774801841412,-500.0,0.00014209,2]
[419040803,1774801841423,-500.0,0.00014209,2]
[419040804,1774801841433,-500.0,0.00014209,2]
[419040805,1774801841443,-500.0,0.00014209,2]
[419040806,1774801841452,-527.96,0.00014209,2]
[419040807,1774801841462,-500.0,0.00014209,2]
[419040808,1774801841473,-500.0,0.00014209,2]
[419040809,1774801841483,-788.4,0.00014233,2]
[419040810,1774801841493,-250.0,0.00014245,2]
[419040811,1774801841502,-784.86,0.00014279,2]
[419040812,1774801841511,-24721.55760303,0.0001429,2]
[419040813,1774801841521,-1600.0,0.00014294,2]
[419040814,1774801841530,-5534.0,0.000143,5]
[419040815,1774801841540,-500.0,0.00014308,2]
[419040816,1774801841550,-2750.6,0.00014334,2]
[419040817,1774801841559,-2750.6,0.00014334,2]
[419040818,1774801841569,-2750.6,0.00014334,2]
[419040819,1774801841578,-2750.6,0.00014334,2]
[419040820,1774801841588,-2750.6,0.00014334,2]
[419040821,1774801841598,-2750.6,0.00014334,2]
[419040822,1774801841607,-2750.6,0.00014334,2]
[419040823,1774801841616,-2750.6,0.00014334,2]
[419040824,1774801841626,-2750.6,0.00014334,2]
[419040825,1774801841635,-1262.0,0.00014334,2]
[419040826,1774801841646,-150.0,0.00014334,2]
[419040827,1774801841655,-925.0,0.00014334,2]
[419040828,1774801841664,-1216.0,0.00014334,2]
[419040829,1774801841674,-6013.0,0.00014334,2]
[419040830,1774801841684,-1329.0,0.00014334,2]
[419040831,1774801841694,-2482.596,0.00014334,2]
[419040832,1774801841703,-433.0,0.00014342,2]
[419040833,1774801841713,-2500.0,0.00014364,2]
[419040834,1774801841723,-2561.25077082,0.00014364,2]
[419040835,1774801841732,-2500.0,0.00014364,2]
[419040836,1774801841742,-1000.0,0.00014364,2]
[419040837,1774801841751,-1276.63,0.00014384,2]
[419040838,1774801841760,-5678.0,0.000144,5]
[419040839,1774801841770,-4338.0,0.000144,5]
[419040840,1774801841780,-620.0,0.000144,2]
[419040841,1774801841790,-160.0,0.00014425,2]
[419040842,1774801842042,-959.8630956,0.00014425,2]
[419040843,1774801842052,-160.0,0.00014425,2]
[419040844,1774801842062,-1000.0,0.00014448,2]
[419040845,1774801842072,-1000.0,0.00014448,2]
[419040846,1774801842081,-1003.54904412,0.00014448,2]
[419040847,1774801842091,-502.98896701,0.00014448,2]
[419040848,1774801842101,-1000.0,0.00014465,2]
[419040849,1774801842110,-1000.0,0.00014465,2]
[419040850,1774801842120,-500.38478146,0.00014498,2]
[419040851,1774801842130,-1000.0,0.00014498,2]
[419040852,1774801842139,-1000.0,0.00014498,2]
[419040853,1774801842148,-1000.0,0.00014548,2]
[419040854,1774801842157,-1000.0,0.00014548,2]
[419040855,1774801842167,-1000.0,0.00014548,2]
[419040856,1774801842177,-910.58294734,0.00014548,2]
[419040857,1774801842186,-1000.0,0.00014548,2]
[419040858,1774801842195,-888.83,0.00014553,2]
[419040859,1774801842205,-2500.0,0.00014564,2]
[419040860,1774801842214,-2500.0,0.00014564,2]
[419040861,1774801842223,-500.0,0.00014564,2]
[419040862,1774801842233,-500.0,0.00014567,2]
[419040863,1774801842243,-500.0,0.00014567,2]
[419040864,1774801842252,-500.0,0.00014567,2]
[419040866,1774801842262,-286.26486585,0.00014571,2]
[419040867,1774801842271,-502.79991996,0.00014571,2]
[419040868,1774801842280,-41184.81579609,0.00014588,2]
[419040869,1774801842290,-24721.55760303,0.00014606,2]
[419040870,1774801842299,-2800.0,0.0001463,2]
[419040871,1774801842308,-208.79,0.00014631,2]
[419040872,1774801842318,-151.0,0.00014639,2]
[419040873,1774801842327,-1536.04360649,0.00014639,2]
[419040874,1774801842337,-225.18697532,0.00014639,2]
[419040875,1774801842347,-187.78006525,0.00014639,2]
[419040876,1774801842357,-200.0,0.00014639,2]
[419040877,1774801842366,-301.00069851,0.00014639,2]
[419040878,1774801842376,-500.0,0.0001465,2]
[419040879,1774801842385,-184.71,0.00014683,2]
[419040880,1774801842394,-348.06,0.00014711,2]
[419040881,1774801842404,-209.21,0.00014754,2]
[419040882,1774801842413,-234.43,0.00014808,2]
[419040883,1774801842424,-151.0,0.00014829,5]
[419040884,1774801842434,-208.77,0.00014896,2]
[419040885,1774801842443,-3000.0,0.00014904,2]
[419040886,1774801842453,-745.04491428,0.00014912,2]
[419040887,1774801842462,-3000.0,0.00014912,2]
[419040888,1774801842473,-24721.55760303,0.00014923,2]
[419040889,1774801842484,-41184.81579609,0.00014973,2]
[419040890,1774801842494,-912.46814667,0.00014985,2]
[419040891,1774801842504,-441.60174942,0.00014985,2]
[419040892,1774801842514,-685.01158904,0.00014996,2]
[419040893,1774801842523,-1500.0,0.00014996,2]
[419040894,1774801842532,-450.84,0.00015,2]
[419040895,1774801842541,-1751.82507383,0.00015,2]
[419040896,1774801842551,-500.0,0.00015,2]
[419040899,1774801842561,-500.0,0.00015,2]
[419040902,1774801842570,-500.0,0.00015,2]
[419040905,1774801842580,-500.0,0.00015,2]
[419040906,1774801842590,-500.0,0.00015,2]
[419040907,1774801842599,-500.0,0.00015,2]
[419040908,1774801842608,-500.0,0.00015,2]
[419040909,1774801842618,-500.0,0.00015,2]
[419040910,1774801842628,-500.0,0.00015,2]
[419040911,1774801842637,-500.0,0.00015,2]
[419040912,1774801842647,-500.0,0.00015,2]
[419040913,1774801842656,-500.0,0.00015,2]
[419040914,1774801842666,-500.0,0.00015,2]
[419040915,1774801842675,-500.0,0.00015,2]
[419040916,1774801842685,-500.0,0.00015,2]
[419040917,1774801842695,-500.0,0.00015,2]
[419040918,1774801842704,-500.0,0.00015,2]
[419040919,1774801842713,-500.0,0.00015,2]
[419040920,1774801842723,-500.0,0.00015,2]
[419040921,1774801842733,-500.0,0.00015,2]
[419040922,1774801842742,-500.0,0.00015,2]
[419040923,1774801842752,-500.0,0.00015,2]
[419040924,1774801842761,-500.0,0.00015,2]
[419040925,1774801842770,-500.0,0.00015,2]
[419040926,1774801842780,-482.33,0.00015,2]
[419040927,1774801842790,-500.0,0.00015,2]
[419040928,1774801842800,-500.0,0.00015,2]
[419040929,1774801842810,-500.0,0.00015,2]
[419040930,1774801842820,-500.0,0.00015,2]
[419040931,1774801842829,-500.0,0.00015,2]
[419040932,1774801842839,-500.0,0.00015,2]
[419040933,1774801842848,-500.0,0.00015,2]
[419040934,1774801842859,-500.0,0.00015,2]
[419040935,1774801842868,-500.0,0.00015,2]
[419040936,1774801842877,-500.0,0.00015,2]
[419040937,1774801842886,-500.0,0.00015,2]
[419040938,1774801842896,-500.0,0.00015,2]
[419040939,1774801842905,-500.0,0.00015,2]
[419040940,1774801842915,-500.0,0.00015,2]
[419040941,1774801842925,-500.0,0.00015,2]
[419040942,1774801842934,-500.0,0.00015,2]
[419040943,1774801842944,-500.0,0.00015,2]
[419040944,1774801842954,-500.0,0.00015,2]
[419040945,1774801842963,-500.0,0.00015,2]
[419040946,1774801842972,-500.0,0.00015,2]
[419040947,1774801842981,-500.0,0.00015,2]
[419040948,1774801842990,-500.0,0.00015,2]
[419040949,1774801843000,-500.0,0.00015,2]
[419040950,1774801843010,-500.0,0.00015,2]
[419040951,1774801843020,-500.0,0.00015,2]
[419040952,1774801843030,-500.0,0.00015,2]
[419040953,1774801843041,-500.0,0.00015,2]
[419040954,1774801843051,-500.0,0.00015,2]
[419040955,1774801843061,-500.0,0.00015,2]
[419040956,1774801843071,-500.0,0.00015,2]
[419040957,1774801843081,-500.0,0.00015,2]
[419040958,1774801843091,-500.0,0.00015,2]
[419040959,1774801843101,-500.0,0.00015,2]
[419040960,1774801843111,-500.0,0.00015,2]
[419040961,1774801843121,-500.0,0.00015,2]
[419040962,1774801843130,-500.0,0.00015,2]
[419040963,1774801843145,-500.0,0.00015,2]
[419040964,1774801843155,-500.0,0.00015,2]
[419040965,1774801843165,-500.0,0.00015,2]
[419040966,1774801843175,-4678.52,0.00015,2]
[419040967,1774801843185,-500.0,0.00015,2]
[419040968,1774801843194,-500.0,0.00015,2]
[419040969,1774801843204,-4789.28,0.00015,2]
[419040970,1774801843213,-500.0,0.00015,2]
[419040971,1774801843223,-500.0,0.00015,2]
[419040972,1774801843233,-593.41,0.00015,2]
[419040973,1774801843243,-4373.32,0.00015,2]
[419040974,1774801843253,-1523.91,0.00015,2]
[419040975,1774801843262,-3286.49,0.00015,2]
[419040977,1774801843272,-20289.73,0.00015,2]
[419040979,1774801843283,-161.4,0.00015,2]
[419040981,1774801843293,-787.61835,0.00015,2]
[419040982,1774801843303,-1000.0,0.0001501,2]
[419040984,1774801843313,-1500.0,0.00015013,2]
[419040986,1774801843323,-500.0,0.00015013,2]
[419040987,1774801843333,-1000.0,0.00015013,2]
[419040988,1774801843344,-1000.0,0.00015023,2]
[419040989,1774801843353,-911.77279152,0.00015046,2]
[419040990,1774801843362,-1500.0,0.00015046,2]
[419040991,1774801843373,-502.53715092,0.00015054,2]
[419040992,1774801843383,-151.0,0.00015054,2]
[419040993,1774801843393,-1000.0,0.00015061,2]
[419040994,1774801843403,-1000.0,0.00015068,2]
[419040995,1774801843413,-1276.63,0.00015068,2]
[419040996,1774801843423,-680.23,0.00015068,2]
[419040997,1774801843434,-1000.0,0.0001507,2]
[419040998,1774801843444,-1332.25501618,0.00015096,2]
[419040999,1774801843454,-1500.0,0.00015096,2]
[419041000,1774801843464,-1500.0,0.00015096,2]
[419041001,1774801843474,-1500.0,0.00015096,2]
[419041002,1774801843485,-258.3713,0.000151,2]
[419041003,1774801843495,-2000.0,0.000151,2]
[419041004,1774801843505,-880.69,0.00015104,2]
[419041005,1774801843515,-2509.58099597,0.00015112,2]
[419041006,1774801843525,-3000.0,0.00015112,2]
[419041007,1774801843535,-1000.0,0.00015115,2]
[419041008,1774801843545,-1000.0,0.00015115,2]
[419041009,1774801843555,-1000.0,0.00015115,2]
[419041010,1774801843564,-1000.0,0.00015136,2]
[419041011,1774801843575,-1000.0,0.00015136,2]
[419041012,1774801843584,-1000.0,0.00015157,2]
[419041013,1774801843594,-1000.0,0.00015166,2]
[419041014,1774801843604,-208.79,0.0001517,2]
[419041015,1774801843614,-1000.0,0.00015176,2]
[419041016,1774801843624,-1000.0,0.00015178,2]
[419041017,1774801843633,-1000.0,0.00015181,2]
[419041018,1774801843643,-1000.0,0.00015184,2]
[419041019,1774801843653,-1000.0,0.00015184,2]
[419041020,1774801843663,-151.0,0.00015187,2]
[419041021,1774801843674,-1592.87721993,0.00015187,2]
[419041022,1774801843684,-233.51889341,0.00015187,2]
[419041023,1774801843694,-194.72792766,0.00015187,2]
[419041024,1774801843703,-200.0,0.00015187,2]
[419041025,1774801843713,-312.13772435,0.00015187,2]
[419041026,1774801843723,-1000.0,0.00015191,2]
[419041027,1774801843733,-393.00963669,0.00015192,2]
[419041028,1774801843743,-724.83675979,0.00015198,2]
[419041029,1774801843753,-6544.65130219,0.000152,2]
[419041030,1774801843763,-371.288842,0.000152,2]
[419041031,1774801843773,-991.57734,0.000152,2]
[419041032,1774801843783,-350.0,0.00015202,2]
[419041033,1774801843793,-1000.0,0.00015207,2]
[419041034,1774801843803,-1000.0,0.0001521,2]
[419041035,1774801843813,-1000.0,0.00015227,2]
[419041036,1774801843823,-187.77689859,0.00015228,2]
[419041037,1774801843832,-1000.0,0.00015229,2]
[419041038,1774801843842,-1000.0,0.0001526,2]
[419041039,1774801843852,-1000.0,0.00015268,2]
[419041040,1774801843863,-1000.0,0.0001527,2]
[419041041,1774801843873,-184.71,0.00015279,2]
[419041042,1774801843883,-1236.92459612,0.000153,2]
[419041043,1774801843893,-700.54400283,0.000153,2]
[419041044,1774801843904,-1000.0,0.00015339,2]
[419041045,1774801843914,-1000.0,0.00015345,2]
[419041046,1774801843923,-1000.0,0.00015351,2]
[419041047,1774801843933,-150.0,0.00015352,2]
[419041048,1774801843943,-1000.0,0.00015352,2]
[419041049,1774801843952,-1000.0,0.00015358,2]
[419041050,1774801843962,-41184.81579609,0.00015359,2]
[419041051,1774801843973,-2807.0,0.0001536,2]
[419041052,1774801843982,-1000.0,0.00015369,2]
[419041053,1774801843992,-1000.0,0.0001537,2]
[419041054,1774801844003,-1000.0,0.00015374,2]
[419041055,1774801844012,-945.38,0.00015378,2]
[419041056,1774801844022,-362.19575843,0.00015396,2]
[419041057,1774801844031,-362.19,0.00015396,2]
[419041058,1774801844040,-405.76,0.00015396,2]
[419041059,1774801844050,-209.21,0.00015396,2]
[419041060,1774801844060,-1000.0,0.000154,2]
[419041061,1774801844071,-312.0,0.000154,2]
[419041062,1774801844080,-306.0,0.000154,2]
[419041063,1774801844089,-1000.0,0.00015406,2]
[419041064,1774801844099,-1000.0,0.00015414,2]
[419041065,1774801844109,-1000.0,0.00015417,2]
[419041066,1774801844118,-1000.0,0.00015417,2]
[419041067,1774801844128,-166.55350379,0.00015425,2]
[419041068,1774801844138,-1000.0,0.00015429,2]
[419041069,1774801844148,-1000.0,0.00015437,2]
[419041070,1774801844157,-1000.0,0.0001544,2]
[419041071,1774801844167,-1000.0,0.00015446,2]
[419041072,1774801844177,-236.394882,0.00015452,7]
[419041073,1774801844187,-1000.0,0.00015452,2]
[419041074,1774801844197,-1000.0,0.00015459,2]
[419041075,1774801844206,-3500.0,0.0001546,2]
[419041076,1774801844216,-1570.0,0.0001547,2]
[419041077,1774801844226,-1000.0,0.00015487,2]
[419041078,1774801844236,-500.0,0.00015499,2]
[419041079,1774801844246,-1000.0,0.00015499,2]
[419041080,1774801844256,-2000.0,0.00015499,2]
[419041081,1774801844266,-2000.0,0.00015499,2]
[419041082,1774801844276,-2000.0,0.00015499,2]
[419041083,1774801844286,-2000.0,0.00015499,2]
[419041084,1774801844296,-2000.0,0.00015499,2]
[419041085,1774801844306,-2000.0,0.00015499,2]
[419041086,1774801844317,-2000.0,0.00015499,2]
[419041087,1774801844326,-2000.0,0.00015499,2]
[419041088,1774801844336,-2000.0,0.00015499,2]
[419041089,1774801844347,-2000.0,0.00015499,2]
[419041090,1774801844356,-2000.0,0.00015499,2]
[419041091,1774801844365,-2000.0,0.00015499,2]
[419041092,1774801844375,-2000.0,0.00015499,2]
[419041093,1774801844384,-2000.0,0.00015499,2]
[419041094,1774801844394,-2000.0,0.00015499,2]
[419041095,1774801844405,-2000.0,0.00015499,2]
[419041096,1774801844415,-2000.0,0.00015499,2]
[419041097,1774801844425,-2000.0,0.00015499,2]
[419041098,1774801844434,-2000.0,0.00015499,2]
[419041099,1774801844443,-2000.0,0.00015499,2]
[419041100,1774801844453,-1000.0,0.00015514,2]
[419041101,1774801844462,-2000.0,0.00015544,2]
[419041102,1774801844471,-2000.0,0.00015561,2]
[419041103,1774801844481,-3292.0,0.00015571,2]
[419041104,1774801844490,-419.22,0.00015571,2]
[419041105,1774801844500,-1000.0,0.00015579,2]
[419041106,1774801844509,-150.0,0.0001558,2]
[419041107,1774801844519,-1000.0,0.00015581,2]
[419041108,1774801844528,-2083.85118063,0.00015594,2]
[419041109,1774801844538,-1000.0,0.00015596,2]
[419041110,1774801844547,-1400.0,0.000156,5]
[419041111,1774801844557,-1000.0,0.00015603,2]
[419041112,1774801844567,-350.0,0.00015604,2]
[419041113,1774801844577,-1000.0,0.00015608,2]
[419041114,1774801844587,-350.0,0.00015625,2]
[419041115,1774801844596,-1000.0,0.00015627,2]
[419041116,1774801844605,-2000.0,0.00015633,2]
[419041117,1774801844615,-2000.0,0.00015633,2]
[419041118,1774801844624,-2000.0,0.00015633,2]
[419041119,1774801844633,-2000.0,0.00015633,2]
[419041120,1774801844642,-2000.0,0.00015633,2]
[419041121,1774801844652,-2000.0,0.00015633,2]
[419041122,1774801844662,-2000.0,0.00015633,2]
[419041123,1774801844671,-2000.0,0.00015633,2]
[419041124,1774801844680,-2000.0,0.00015633,2]
[419041125,1774801844690,-2000.0,0.00015633,2]
[419041126,1774801844700,-736.0,0.00015633,2]
[419041127,1774801844709,-1000.0,0.00015642,2]
[419041128,1774801844719,-1000.0,0.00015642,2]
[419041129,1774801844729,-2000.0,0.00015644,2]
[419041130,1774801844738,-510.44418561,0.00015644,2]
[419041131,1774801844748,-2000.0,0.00015644,2]
[419041132,1774801844757,-1001.46003451,0.0001566,2]
[419041133,1774801844766,-1500.0,0.00015663,2]
[419041134,1774801844776,-1500.0,0.00015663,2]
[419041135,1774801844785,-1395.15417605,0.00015663,2]
[419041136,1774801844795,-1000.0,0.00015668,2]
[419041137,1774801844805,-1096.24809732,0.00015672,2]
[419041138,1774801844815,-1000.0,0.00015672,2]
[419041139,1774801844825,-1000.0,0.00015677,2]
[419041140,1774801844836,-1000.0,0.00015678,2]
[419041141,1774801844846,-1000.0,0.00015679,2]
[419041142,1774801844856,-1000.0,0.00015679,2]
[419041143,1774801844866,-7093.81877092,0.0001568,2]
[419041144,1774801844876,-1000.0,0.0001568,2]
[419041145,1774801844886,-1000.0,0.00015695,2]
[419041146,1774801844896,-1000.0,0.00015697,2]
[419041147,1774801844905,-1000.0,0.000157,2]
[419041148,1774801844914,-2000.0,0.000157,2]
[419041149,1774801844924,-1400.0,0.000157,5]
[419041150,1774801844934,-500.0,0.00015704,2]
[419041151,1774801844943,-1570.0,0.0001571,2]
[419041152,1774801844952,-1600.0,0.00015724,2]
[419041153,1774801844962,-151.0,0.00015735,2]
[419041154,1774801844971,-1651.81367706,0.00015735,2]
[419041155,1774801844983,-295.36053297,0.00015735,2]
[419041156,1774801844992,-201.93286099,0.00015735,2]
[419041157,1774801845004,-200.0,0.00015735,2]
[419041158,1774801845013,-342.1700996,0.00015735,2]
[419041159,1774801845023,-41184.81579609,0.00015745,2]
[419041160,1774801845033,-350.0,0.00015746,2]
[419041161,1774801845043,-419.22,0.00015746,2]
[419041162,1774801845053,-1276.63,0.00015753,2]
[419041163,1774801845064,-417.614002,0.00015759,7]
[419041164,1774801845073,-208.79,0.00015765,2]
[419041165,1774801845083,-1000.0,0.00015766,2]
[419041166,1774801845092,-1000.0,0.00015766,2]
[419041167,1774801845102,-1000.0,0.00015766,2]
[419041168,1774801845111,-1000.0,0.00015766,2]
[419041169,1774801845121,-1000.0,0.00015766,2]
[419041170,1774801845130,-1000.0,0.00015766,2]
[419041171,1774801845140,-1000.0,0.00015766,2]
[419041172,1774801845150,-1000.0,0.00015766,2]
[419041173,1774801845159,-1000.0,0.00015766,2]
[419041174,1774801845169,-1000.0,0.00015766,2]
[419041175,1774801845179,-1000.0,0.00015766,2]
[419041176,1774801845188,-1000.0,0.00015766,2]
[419041177,1774801845200,-1000.0,0.00015766,2]
[419041178,1774801845210,-1000.0,0.00015766,2]
[419041179,1774801845220,-710.164,0.00015766,2]
[419041180,1774801845229,-1000.0,0.00015767,2]
[419041181,1774801845239,-1000.0,0.00015769,2]
[419041182,1774801845248,-683.0,0.00015777,2]
[419041183,1774801845259,-1000.0,0.00015797,2]
[419041184,1774801845270,-1400.0,0.000158,5]
[419041185,1774801845280,-1000.0,0.00015822,2]
[419041186,1774801845289,-1000.0,0.00015828,2]
[419041187,1774801845299,-151.0,0.00015829,5]
[419041188,1774801845309,-1000.0,0.0001583,2]
[419041189,1774801845318,-1000.0,0.00015836,2]
[419041190,1774801845328,-65223.01927979,0.0001584,2]
[419041191,1774801845338,-1000.0,0.00015845,2]
[419041192,1774801845348,-1000.0,0.00015848,2]
[419041193,1774801845357,-1000.0,0.00015865,2]
[419041194,1774801845367,-1000.0,0.00015871,2]
[419041195,1774801845376,-500.0,0.00015872,2]
[419041196,1774801845386,-200.0,0.00015872,2]
[419041197,1774801845395,-1000.0,0.00015876,2]
[419041198,1774801845642,-150.0,0.00015879,2]
[419041199,1774801845654,-1000.0,0.00015891,2]
[419041200,1774801845665,-1000.0,0.00015893,2]
[419041201,1774801845675,-500.0,0.00015899,2]
[419041202,1774801845684,-500.0,0.00015899,2]
[419041203,1774801845694,-425.59309314,0.00015899,2]
[419041204,1774801845703,-184.71,0.00015899,2]
[419041205,1774801845713,-614.16997624,0.000159,2]
[419041206,1774801845724,-1400.0,0.000159,5]
[419041207,1774801845734,-567.52951657,0.000159,2]
[419041208,1774801845744,-539.03269784,0.000159,2]
[419041209,1774801845753,-683.0,0.00015905,2]
[419041210,1774801845763,-1000.0,0.00015909,2]
[419041211,1774801845772,-683.0,0.00015912,2]
[419041212,1774801845782,-1000.0,0.00015917,2]
[419041213,1774801845792,-184.71,0.00015921,2]
[419041214,1774801845801,-419.24379425,0.00015922,2]
[419041215,1774801845812,-405.77,0.00015922,2]
[419041216,1774801845822,-1000.0,0.00015922,2]
[419041217,1774801845832,-150.0,0.00015925,2]
[419041218,1774801845842,-1000.0,0.00015927,2]
[419041219,1774801845852,-1000.0,0.00015943,2]
[419041220,1774801845862,-227.70167578,0.00015952,2]
[419041221,1774801845871,-3835.20744626,0.0001596,2]
[419041222,1774801845881,-2807.0,0.0001596,2]
[419041223,1774801845891,-342.71585944,0.00015973,2]
[419041224,1774801845900,-500.0,0.00015973,2]
[419041225,1774801845909,-500.0,0.00015973,2]
[419041226,1774801845919,-500.0,0.00015973,2]
[419041227,1774801845928,-500.0,0.00015973,2]
[419041228,1774801845937,-500.0,0.00015973,2]
[419041229,1774801845947,-1246.68064966,0.00015988,2]
[419041230,1774801845957,-259.20637148,0.00015989,2]
[419041231,1774801845966,-200.7828319,0.00015989,2]
[419041232,1774801845976,-410.07806289,0.00015989,2]
[419041233,1774801845986,-1000.0,0.00015991,2]
[419041234,1774801845995,-1000.0,0.00015995,2]
[419041235,1774801846005,-1000.0,0.00015996,2]
[419041236,1774801846015,-1000.0,0.00015996,2]
[419041237,1774801846025,-1000.0,0.00015996,2]
[419041238,1774801846034,-469.082,0.00015996,2]
[419041239,1774801846045,-666.0,0.00015997,2]
[419041240,1774801846055,-167.134268,0.00015997,2]
[419041241,1774801846064,-4051.5663196,0.00015998,2]
[419041242,1774801846074,-217627.7165736,0.00015998,2]
[419041243,1774801846084,-10255.5272463,0.00015998,2]
[419041244,1774801846093,-652653.9910944,0.00015998,2]
[419041245,1774801846102,-759.6686849,0.00015998,2]
[419041246,1774801846111,-1139.5030273,0.00015998,2]
[419041247,1774801846121,-684.0040152,0.00015999,2]
[419041248,1774801846131,-2609994.78152513,0.00016,2]
[419041260,1774801848898,-138704.94246208,0.00016,2]
[419041261,1774801848910,-48734.26015947,0.00016,2]
[419041262,1774801848922,-7721.94853633,0.00016,2]
[419041263,1774801848974,-4329314.22512812,0.00016,2]
[419041264,1774801848983,-151.0,0.00016,2]
[419041265,1774801848994,-151.0,0.00016,2]
[419041266,1774801849004,-151.0,0.00016,2]
[419041267,1774801849014,-151.0,0.00016,2]
[419041268,1774801849024,-3588085.31614205,0.00016,2]
[419041269,1774801849036,-483.30330137,0.00016,2]
[419041270,1774801849151,-781.06101906,0.00016,2]
[419041271,1774801849163,-674.66537723,0.00016,2]
[419041272,1774801849174,-4413.77588023,0.00016,2]
[419041273,1774801849186,-291.7378713,0.00016,2]
[419041274,1774801849199,-1487.0,0.00016,2]
[419041275,1774801849742,-555.46012778,0.00014334,2]
[419041276,1774801849816,-2962.53987222,0.00014334,2]
[419041277,1774801849827,-1169.18400858,0.00016,2]
[419041278,1774801849838,-764.86434579,0.00016,2]
[419041279,1774801849850,-250.05460402,0.00016,2]
[419041280,1774801849861,-2343.68669856,0.00016,2]
[419041281,1774801849915,-7125.36641966,0.00016,2]
[419041282,1774801849947,-18314.47348714,0.00016,2]
[419041283,1774801849959,-142445.12859931,0.00016,2]
[419041284,1774801850011,-4080.06235367,0.00016,2]
[419041285,1774801850023,-1030.1308482,0.00016,2]
[419041286,1774801850034,-1772.92596407,0.00016,2]
[419041287,1774801850045,-2509.07303865,0.00016,2]
[419041288,1774801850056,-971.2001698,0.00016,2]
[419041289,1774801850075,-1464.61481696,0.00016,2]
[419041290,1774801850087,-4037.52908047,0.00016,2]
[419041291,1774801850099,-800.47612132,0.00016,2]
[419041292,1774801850111,-743.33980056,0.00016,2]